lending/lending_fUSD_20240504
["ID","MTS","AMOUNT","RATE_DAILY","PERIOD"]
[325393741,1714809242014,-654.5,0.00041369,31]
[325393742,1714809242047,-1104.93,0.00041369,31]
[325393743,1714809242085,-500.0,0.00041369,31]
[325393744,1714809242108,-1254.32,0.00041369,31]
[325393745,1714809242130,-500.0,0.00041369,31]
[325393746,1714809242155,-500.0,0.00041369,31]
[325393747,1714809242177,-500.0,0.00041369,31]
[325393748,1714809242202,-500.0,0.00041369,31]
[325393749,1714809242227,-500.0,0.00041369,31]
[325393750,1714809242251,-500.0,0.00041369,31]
[325393751,1714809242276,-919.76,0.00041369,31]
[325393752,1714809242299,-500.0,0.00041369,31]
[325393753,1714809242323,-945.36,0.00041369,31]
[325393754,1714809242346,-500.0,0.00041369,31]
[325393755,1714809242372,-500.0,0.00041369,31]
[325393756,1714809242397,-500.0,0.00041369,31]
[325393757,1714809242421,-500.0,0.00041369,31]
[325393758,1714809242448,-612.80956299,0.00041369,31]
[325393759,1714809242473,-1024.16,0.00041369,31]
[325393760,1714809242498,-748.98,0.00041369,31]
[325393761,1714809242523,-500.0,0.00041369,31]
[325393762,1714809242547,-501.91,0.00041369,31]
[325393763,1714809242571,-500.0,0.00041369,31]
[325393764,1714809242595,-500.0,0.00041369,31]
[325393765,1714809242619,-500.0,0.00041369,31]
[325393766,1714809242645,-500.0,0.00041369,31]
[325393767,1714809242668,-500.0,0.00041369,31]
[325393768,1714809242692,-548.87,0.00041369,31]
[325393769,1714809242716,-615.83,0.00041369,31]
[325393770,1714809242740,-422.88189126,0.00041369,31]
[325393771,1714809242765,-634.41,0.00041369,31]
[325393772,1714809242789,-500.0,0.00041369,31]
[325393773,1714809242813,-500.0,0.00041369,31]
[325393774,1714809242836,-879.73,0.00041369,31]
[325393775,1714809242860,-500.0,0.00041369,31]
[325393776,1714809242883,-500.0,0.00041369,31]
[325393777,1714809243192,-500.0,0.00041369,31]
[325393778,1714809243217,-1215.43,0.00041369,31]
[325393779,1714809243241,-500.0,0.00041369,31]
[325393780,1714809243264,-500.0,0.00041369,31]
[325393781,1714809243288,-979.69,0.00041369,31]
[325393782,1714809243311,-912.15,0.00041369,31]
[325393783,1714809243335,-321.03534385,0.00041369,31]
[325393784,1714809243359,-500.0,0.00041369,31]
[325393785,1714809243384,-500.0,0.00041369,31]
[325393786,1714809243407,-999.49,0.00041369,31]
[325393787,1714809243431,-500.0,0.00041369,31]
[325393788,1714809243455,-500.0,0.00041369,31]
[325393789,1714809243479,-359.47141863,0.00041369,31]
[325393790,1714809243503,-500.0,0.00041369,31]
[325393791,1714809243526,-725.11,0.00041369,31]
[325393792,1714809243549,-711.17,0.00041369,31]
[325393793,1714809243572,-941.66,0.00041369,31]
[325393794,1714809243595,-500.0,0.00041369,31]
[325393795,1714809243619,-774.15,0.00041369,31]
[325393796,1714809243643,-578.99,0.00041369,31]
[325393797,1714809243666,-500.0,0.00041369,31]
[325393798,1714809243690,-500.0,0.00041369,31]
[325393799,1714809243715,-572.55,0.00041369,31]
[325393800,1714809243740,-539.94,0.00041369,31]
[325393801,1714809243765,-940.51,0.00041369,31]
[325393802,1714809243790,-500.0,0.00041369,31]
[325393803,1714809243814,-1053.86,0.00041369,31]
[325393804,1714809243837,-221.07360336,0.00041369,31]
[325393805,1714809243861,-202.68447618,0.00041369,31]
[325393806,1714809243884,-730.14,0.00041369,31]
[325393807,1714809243908,-500.0,0.00041369,31]
[325393808,1714809243931,-983.35,0.00041369,31]
[325393809,1714809243955,-1126.43,0.00041369,31]
[325393810,1714809243979,-500.0,0.00041369,31]
[325393811,1714809244002,-539.40513982,0.00041369,31]
[325393812,1714809244024,-500.0,0.00041369,31]
[325393813,1714809244050,-706.78,0.00041369,31]
[325393814,1714809244073,-689.09,0.00041369,31]
[325393815,1714809244098,-282.04723576,0.00041369,31]
[325393816,1714809244124,-1161.14,0.00041369,31]
[325393817,1714809244148,-500.0,0.00041369,31]
[325393818,1714809244171,-1227.5,0.00041369,31]
[325393819,1714809244195,-1107.51,0.00041369,31]
[325393820,1714809244220,-500.0,0.00041369,31]
[325393821,1714809244243,-500.0,0.00041369,31]
[325393822,1714809244268,-500.0,0.00041369,31]
[325393823,1714809244292,-500.0,0.00041369,31]
[325393824,1714809244316,-550.62,0.00041369,31]
[325393825,1714809244340,-1012.51,0.00041369,31]
[325393826,1714809244369,-500.0,0.00041369,31]
[325393827,1714809244393,-730.59,0.00041369,31]
[325393828,1714809244416,-778.61,0.00041369,31]
[325393829,1714809244439,-500.0,0.00041369,31]
[325393830,1714809244463,-500.0,0.00041369,31]
[325393831,1714809244488,-1076.67,0.00041369,31]
[325393832,1714809244512,-500.0,0.00041369,31]
[325393833,1714809244539,-500.0,0.00041369,31]
[325393834,1714809244563,-558.15,0.00041369,31]
[325393835,1714809244587,-500.0,0.00041369,31]
[325393836,1714809244611,-620.71,0.00041369,31]
[325393837,1714809244635,-500.0,0.00041369,31]
[325393838,1714809244660,-500.0,0.00041369,31]
[325393839,1714809244683,-741.19,0.00041369,31]
[325393840,1714809244707,-500.0,0.00041369,31]
[325393841,1714809244731,-606.57,0.00041369,31]
[325393842,1714809244755,-500.0,0.00041369,31]
[325393843,1714809244782,-500.0,0.00041369,31]
[325393844,1714809244805,-500.0,0.00041369,31]
[325393845,1714809244828,-1043.12,0.00041369,31]
[325393846,1714809244851,-1805.64,0.00041369,31]
[325393847,1714809244875,-554.75,0.00041369,31]
[325393848,1714809244962,-500.0,0.00041369,31]
[325393849,1714809244986,-813.96,0.00041369,31]
[325393850,1714809245009,-989.5,0.00041369,31]
[325393851,1714809245042,-500.0,0.00041369,31]
[325393852,1714809245067,-1551.64,0.00041369,31]
[325393853,1714809245093,-482.54516162,0.00041369,31]
[325393854,1714809245120,-632.24,0.00041369,31]
[325393855,1714809245149,-1439.46,0.00041369,31]
[325393856,1714809245179,-500.0,0.00041369,31]
[325393857,1714809245209,-1110.4,0.00041369,31]
[325393858,1714809245235,-571.4,0.00041369,31]
[325393859,1714809245260,-500.0,0.00041369,31]
[325393860,1714809245284,-1526.95,0.00041369,31]
[325393861,1714809245309,-2601.49,0.00041369,31]
[325393862,1714809245333,-528.48,0.00041369,31]
[325393863,1714809245357,-605.23,0.00041369,31]
[325393864,1714809245382,-1108.42,0.00041369,31]
[325393865,1714809245407,-1783.46,0.00041369,31]
[325393866,1714809245430,-593.03,0.00041369,31]
[325393867,1714809245458,-553.41,0.00041369,31]
[325393868,1714809245483,-1126.06,0.00041369,31]
[325393869,1714809245509,-943.48,0.00041369,31]
[325393870,1714809245535,-500.0,0.00041369,31]
[325393871,1714809245561,-1016.79,0.00041369,31]
[325393872,1714809245586,-575.77,0.00041369,31]
[325393873,1714809245611,-842.53,0.00041369,31]
[325393874,1714809245636,-500.0,0.00041369,31]
[325393875,1714809245661,-875.76,0.00041369,31]
[325393876,1714809245687,-728.48,0.00041369,31]
[325393877,1714809245711,-697.8,0.00041369,31]
[325393878,1714809245735,-931.3,0.00041369,31]
[325393879,1714809245762,-1020.01,0.00041369,31]
[325393880,1714809245789,-656.86,0.00041369,31]
[325393881,1714809245813,-2673.04,0.00041369,31]
[325393882,1714809245839,-500.0,0.00041369,31]
[325393883,1714809245864,-2254.55,0.00041369,31]
[325393884,1714809245891,-500.0,0.00041369,31]
[325393885,1714809245914,-500.0,0.00041369,31]
[325393886,1714809245939,-965.72,0.00041369,31]
[325393887,1714809245962,-515.48,0.00041369,31]
[325393888,1714809245986,-857.26,0.00041369,31]
[325393889,1714809246009,-1168.97,0.00041369,30]
[325393890,1714809246036,-717.95,0.00041369,31]
[325393891,1714809246060,-1359.71,0.00041369,31]
[325393892,1714809246085,-500.0,0.00041369,31]
[325393893,1714809246109,-877.86,0.00041369,31]
[325393894,1714809246134,-611.09,0.00041369,31]
[325393895,1714809246157,-1084.92,0.00041369,31]
[325393896,1714809246183,-834.89,0.00041369,31]
[325393897,1714809246208,-2246.1,0.00041369,31]
[325393898,1714809246234,-698.17,0.00041369,31]
[325393899,1714809246257,-1631.24,0.00041369,31]
[325393900,1714809246282,-548.88,0.00041369,31]
[325393901,1714809246305,-585.53,0.00041369,31]
[325393902,1714809246330,-500.0,0.00041369,31]
[325393903,1714809246354,-552.86,0.00041369,31]
[325393904,1714809246377,-758.74,0.00041369,31]
[325393905,1714809246400,-1116.73,0.00041369,31]
[325393906,1714809246423,-877.17,0.00041369,31]
[325393907,1714809246448,-500.0,0.00041369,31]
[325393908,1714809246473,-1351.28,0.00041369,31]
[325393909,1714809246498,-500.0,0.00041369,31]
[325393910,1714809246524,-713.29,0.00041369,31]
[325393911,1714809246548,-1338.7,0.00041369,31]
[325393912,1714809246573,-568.98,0.00041369,31]
[325393913,1714809246597,-2374.46,0.00041369,31]
[325393914,1714809246622,-1536.38,0.00041369,31]
[325393915,1714809246646,-596.14,0.00041369,31]
[325393916,1714809246671,-500.0,0.00041369,31]
[325393917,1714809246696,-1431.45,0.00041369,31]
[325393918,1714809246720,-500.0,0.00041369,31]
[325393919,1714809246745,-864.7,0.00041369,31]
[325393920,1714809246771,-1068.16,0.00041369,31]
[325393921,1714809246795,-527.26957566,0.00041369,31]
[325393922,1714809246818,-879.65,0.00041369,31]
[325393923,1714809246842,-1139.28,0.00041369,31]
[325393924,1714809246866,-1191.94,0.00041369,31]
[325393925,1714809246895,-500.0,0.00041369,31]
[325393926,1714809246918,-1278.61,0.00041369,31]
[325393927,1714809246943,-500.0,0.00041369,31]
[325393928,1714809246967,-822.03,0.00041369,31]
[325393929,1714809246990,-500.0,0.00041369,31]
[325393930,1714809247013,-612.33,0.00041369,31]
[325393931,1714809247041,-500.0,0.00041369,31]
[325393932,1714809247065,-556.55,0.00041369,31]
[325393933,1714809247089,-1239.56,0.00041369,31]
[325393934,1714809247113,-749.06,0.00041369,31]
[325393935,1714809247136,-524.82,0.00041369,31]
[325393936,1714809247159,-514.23,0.00041369,31]
[325393937,1714809247181,-500.0,0.00041369,31]
[325393938,1714809247206,-500.0,0.00041369,31]
[325393939,1714809247229,-1073.03,0.00041369,31]
[325393940,1714809247251,-2301.47,0.00041369,31]
[325393941,1714809247274,-857.07,0.00041369,31]
[325393942,1714809247298,-500.0,0.00041369,31]
[325393943,1714809247321,-500.0,0.00041369,31]
[325393944,1714809247344,-1094.25,0.00041369,31]
[325393945,1714809247368,-500.0,0.00041369,31]
[325393946,1714809247391,-500.0,0.00041369,31]
[325393947,1714809247413,-500.0,0.00041369,31]
[325393948,1714809247438,-555.0,0.00041369,31]
[325393949,1714809247462,-171.33531303,0.00041369,31]
[325393950,1714809247485,-1308.27,0.00041369,31]
[325393951,1714809247508,-514.25,0.00041369,31]
[325393952,1714809247533,-515.4,0.00041369,31]
[325393953,1714809247677,-531.4554536,0.00041369,31]
[325393954,1714809247705,-977.85,0.00041369,31]
[325393955,1714809247729,-1247.06,0.00041369,31]
[325393956,1714809247753,-500.0,0.00041369,31]
[325393957,1714809247781,-500.0,0.00041369,31]
[325393958,1714809247804,-513.61431476,0.00041369,31]
[325393959,1714809247827,-950.29,0.00041369,31]
[325393960,1714809247851,-548.51,0.00041369,31]
[325393961,1714809247874,-838.25,0.00041369,31]
[325393962,1714809247897,-500.0,0.00041369,31]
[325393963,1714809247920,-700.9,0.00041369,31]
[325393964,1714809247945,-500.0,0.00041369,31]
[325393965,1714809247969,-534.54,0.00041369,31]
[325393966,1714809247992,-602.33,0.00041369,31]
[325393967,1714809248016,-500.0,0.00041369,31]
[325393968,1714809248042,-500.0,0.00041369,31]
[325393969,1714809248066,-500.0,0.00041369,31]
[325393970,1714809248091,-500.0,0.00041369,31]
[325393971,1714809248115,-618.6,0.00041369,31]
[325393972,1714809248138,-1137.07,0.00041369,31]
[325393973,1714809248162,-1471.39,0.00041369,31]
[325393974,1714809248186,-862.17,0.00041369,31]
[325393975,1714809248210,-664.94,0.00041369,31]
[325393976,1714809248234,-532.73,0.00041369,31]
[325393977,1714809248259,-719.45,0.00041369,31]
[325393978,1714809248283,-500.0,0.00041369,31]
[325393979,1714809248306,-927.2,0.00041369,31]
[325393980,1714809248332,-500.0,0.00041369,31]
[325393981,1714809248355,-1111.34,0.00041369,31]
[325393982,1714809248380,-500.0,0.00041369,31]
[325393983,1714809248404,-500.0,0.00041369,31]
[325393984,1714809248428,-500.0,0.00041369,31]
[325393985,1714809248454,-500.0,0.00041369,31]
[325393986,1714809248478,-588.12567186,0.00041369,31]
[325393987,1714809248501,-772.15,0.00041369,31]
[325393988,1714809248525,-1066.54,0.00041369,31]
[325393989,1714809248549,-556.95,0.00041369,31]
[325393990,1714809248574,-500.0,0.00041369,31]
[325393991,1714809248597,-500.0,0.00041369,31]
[325393992,1714809248624,-500.0,0.00041369,31]
[325393993,1714809248648,-500.0,0.00041369,31]
[325393994,1714809248672,-500.0,0.00041369,31]
[325393995,1714809248696,-500.0,0.00041369,31]
[325393996,1714809248720,-1152.3,0.00041369,31]
[325393997,1714809248743,-1199.37,0.00041369,31]
[325393998,1714809248767,-547.89,0.00041369,31]
[325393999,1714809248791,-594.48,0.00041369,31]
[325394000,1714809248815,-500.0,0.00041369,31]
[325394001,1714809248840,-991.78,0.00041369,31]
[325394002,1714809248864,-500.0,0.00041369,31]
[325394003,1714809248888,-1060.19,0.00041369,31]
[325394004,1714809248911,-729.66,0.00041369,31]
[325394005,1714809248935,-1193.92,0.00041369,31]
[325394006,1714809248961,-500.0,0.00041369,31]
[325394007,1714809248986,-500.0,0.00041369,31]
[325394008,1714809249011,-500.0,0.00041369,31]
[325394009,1714809249039,-500.0,0.00041369,31]
[325394010,1714809249065,-500.0,0.00041369,31]
[325394011,1714809249090,-848.1,0.00041369,31]
[325394012,1714809249114,-500.0,0.00041369,31]
[325394013,1714809249139,-1627.08,0.00041369,31]
[325394014,1714809249163,-500.0,0.00041369,31]
[325394015,1714809249188,-1061.1,0.00041369,31]
[325394016,1714809249212,-500.0,0.00041369,31]
[325394017,1714809249238,-500.0,0.00041369,31]
[325394018,1714809249262,-941.09,0.00041369,31]
[325394019,1714809249287,-500.0,0.00041369,31]
[325394020,1714809249311,-500.0,0.00041369,31]
[325394021,1714809249337,-590.57,0.00041369,31]
[325394022,1714809249365,-700.82,0.00041369,31]
[325394023,1714809249391,-500.0,0.00041369,31]
[325394024,1714809249416,-879.96,0.00041369,31]
[325394025,1714809249444,-909.62,0.00041369,31]
[325394026,1714809249469,-500.0,0.00041369,31]
[325394027,1714809249494,-960.65,0.00041369,31]
[325394028,1714809249519,-500.0,0.00041369,31]
[325394029,1714809249544,-500.0,0.00041369,31]
[325394030,1714809249570,-500.0,0.00041369,31]
[325394031,1714809249595,-1669.39,0.00041369,31]
[325394032,1714809249619,-804.14,0.00041369,31]
[325394033,1714809249644,-645.37,0.00041369,31]
[325394034,1714809249668,-500.0,0.00041369,31]
[325394035,1714809249693,-500.0,0.00041369,31]
[325394036,1714809249716,-1056.36,0.00041369,31]
[325394037,1714809249741,-1101.07,0.00041369,31]
[325394038,1714809249766,-832.22,0.00041369,31]
[325394039,1714809249790,-898.2,0.00041369,31]
[325394040,1714809249815,-1782.43,0.00041369,31]
[325394041,1714809249838,-500.0,0.00041369,31]
[325394042,1714809250131,-500.0,0.00041369,31]
[325394043,1714809250157,-500.0,0.00041369,31]
[325394044,1714809250182,-833.46,0.00041369,31]
[325394045,1714809250211,-1378.24,0.00041369,31]
[325394046,1714809250236,-801.77,0.00041369,31]
[325394047,1714809250262,-500.0,0.00041369,31]
[325394048,1714809250287,-500.0,0.00041369,31]
[325394049,1714809250312,-954.07,0.00041369,31]
[325394050,1714809250353,-500.0,0.00041369,31]
[325394051,1714809250382,-572.14,0.00041369,31]
[325394052,1714809250410,-738.36,0.00041369,31]
[325394053,1714809250437,-920.65,0.00041369,31]
[325394054,1714809250468,-651.16,0.00041369,31]
[325394055,1714809250496,-500.0,0.00041369,31]
[325394056,1714809250523,-1048.07,0.00041369,31]
[325394057,1714809250550,-997.78,0.00041369,31]
[325394058,1714809250576,-500.0,0.00041369,31]
[325394059,1714809250604,-1007.74,0.00041369,31]
[325394060,1714809250630,-1217.37,0.00041369,31]
[325394061,1714809250657,-500.0,0.00041369,31]
[325394063,1714809250685,-586.47,0.00041369,31]
[325394064,1714809250713,-890.98,0.00041369,31]
[325394065,1714809250739,-500.0,0.00041369,31]
[325394066,1714809250769,-500.0,0.00041369,31]
[325394067,1714809250795,-500.0,0.00041369,31]
[325394068,1714809250822,-710.03,0.00041369,31]
[325394069,1714809250849,-2175.43,0.00041369,31]
[325394070,1714809250875,-544.48,0.00041369,31]
[325394071,1714809250900,-811.28,0.00041369,31]
[325394072,1714809250930,-500.0,0.00041369,31]
[325394073,1714809250956,-515.14605332,0.00041369,31]
[325394074,1714809250982,-833.53,0.00041369,31]
[325394075,1714809251007,-500.0,0.00041369,31]
[325394076,1714809251036,-500.0,0.00041369,31]
[325394077,1714809251065,-1807.07,0.00041369,31]
[325394078,1714809251098,-2000.0,0.00041369,120]
[325394079,1714809251126,-925.22,0.00041369,31]
[325394080,1714809251153,-500.0,0.00041369,31]
[325394081,1714809251186,-526.64,0.00041369,31]
[325394082,1714809251216,-500.0,0.00041369,31]
[325394083,1714809251249,-877.96,0.00041369,31]
[325394084,1714809251278,-1652.9,0.00041369,31]
[325394085,1714809251307,-681.48,0.00041369,31]
[325394086,1714809251334,-2140.17,0.00041369,31]
[325394087,1714809251365,-509.11,0.00041369,31]
[325394088,1714809251391,-500.0,0.00041369,31]
[325394089,1714809251422,-500.0,0.00041369,31]
[325394090,1714809251450,-758.51,0.00041369,31]
[325394091,1714809251480,-976.01,0.00041369,31]
[325394092,1714809251510,-500.0,0.00041369,31]
[325394093,1714809251536,-923.94,0.00041369,31]
[325394094,1714809251560,-500.0,0.00041369,31]
[325394095,1714809251584,-500.0,0.00041369,31]
[325394096,1714809251609,-1437.5,0.00041369,31]
[325394097,1714809251639,-991.12,0.00041369,31]
[325394098,1714809251665,-871.8,0.00041369,31]
[325394099,1714809251690,-500.0,0.00041369,31]
[325394100,1714809251716,-500.0,0.00041369,31]
[325394101,1714809251741,-500.0,0.00041369,31]
[325394102,1714809251768,-1243.15,0.00041369,31]
[325394103,1714809251796,-546.63,0.00041369,31]
[325394104,1714809251824,-268.15892744,0.00041369,31]
[325394105,1714809251851,-500.0,0.00041369,31]
[325394106,1714809251877,-1346.94,0.00041369,31]
[325394107,1714809251903,-1012.85,0.00041369,31]
[325394108,1714809251930,-1073.74,0.00041369,31]
[325394109,1714809251957,-500.0,0.00041369,31]
[325394110,1714809251984,-457.17255802,0.00041369,31]
[325394111,1714809252011,-611.49,0.00041369,31]
[325394112,1714809252040,-500.0,0.00041369,31]
[325394113,1714809252066,-857.54,0.00041369,31]
[325394114,1714809252093,-500.0,0.00041369,31]
[325394115,1714809252250,-500.0,0.00041369,31]
[325394116,1714809252274,-1534.91,0.00041369,31]
[325394117,1714809252297,-1091.2,0.00041369,31]
[325394118,1714809252321,-643.24,0.00041369,31]
[325394119,1714809252346,-692.78,0.00041369,31]
[325394120,1714809252369,-500.0,0.00041369,31]
[325394121,1714809252392,-552.62,0.00041369,31]
[325394122,1714809252415,-1392.08,0.00041369,31]
[325394123,1714809252439,-500.0,0.00041369,31]
[325394124,1714809252463,-1007.83,0.00041369,31]
[325394125,1714809252487,-500.0,0.00041369,31]
[325394126,1714809252511,-1425.4,0.00041369,31]
[325394127,1714809252534,-832.57,0.00041369,31]
[325394128,1714809252558,-500.0,0.00041369,31]
[325394129,1714809252581,-845.58,0.00041369,31]
[325394130,1714809252603,-2124.53,0.00041369,31]
[325394131,1714809252626,-1076.87,0.00041369,31]
[325394132,1714809252649,-1126.21,0.00041369,31]
[325394133,1714809252673,-500.0,0.00041369,31]
[325394134,1714809252697,-1027.72,0.00041369,31]
[325394135,1714809252720,-552.83,0.00041369,31]
[325394136,1714809252744,-500.0,0.00041369,31]
[325394137,1714809252767,-2255.29,0.00041369,31]
[325394138,1714809252790,-523.04,0.00041369,31]
[325394139,1714809252818,-500.0,0.00041369,31]
[325394140,1714809252841,-500.0,0.00041369,31]
[325394141,1714809252864,-1271.41,0.00041369,31]
[325394142,1714809252888,-1240.79,0.00041369,31]
[325394143,1714809252911,-500.0,0.00041369,31]
[325394144,1714809252936,-1834.43,0.00041369,31]
[325394145,1714809252960,-685.92,0.00041369,31]
[325394146,1714809252984,-1545.04,0.00041369,31]
[325394147,1714809253008,-500.0,0.00041369,31]
[325394148,1714809253032,-500.0,0.00041369,31]
[325394149,1714809253061,-500.0,0.00041369,31]
[325394150,1714809253085,-500.0,0.00041369,31]
[325394151,1714809253110,-515.67296659,0.00041369,31]
[325394152,1714809253134,-724.05,0.00041369,31]
[325394153,1714809253157,-500.0,0.00041369,31]
[325394154,1714809253181,-500.0,0.00041369,31]
[325394155,1714809253208,-1411.88,0.00041369,31]
[325394156,1714809253232,-1360.89,0.00041369,31]
[325394157,1714809253256,-806.67,0.00041369,31]
[325394158,1714809253280,-552.97,0.00041369,31]
[325394159,1714809253304,-500.0,0.00041369,31]
[325394160,1714809253327,-1540.75,0.00041369,31]
[325394161,1714809253351,-500.0,0.00041369,31]
[325394162,1714809253375,-1162.95,0.00041369,31]
[325394163,1714809253398,-500.0,0.00041369,31]
[325394164,1714809253422,-500.0,0.00041369,31]
[325394165,1714809253446,-500.0,0.00041369,31]
[325394166,1714809253469,-500.0,0.00041369,31]
[325394167,1714809253494,-768.79,0.00041369,31]
[325394168,1714809253517,-500.0,0.00041369,31]
[325394169,1714809253542,-500.0,0.00041369,31]
[325394170,1714809253567,-500.0,0.00041369,31]
[325394171,1714809253591,-1389.94,0.00041369,31]
[325394172,1714809253614,-831.46,0.00041369,31]
[325394173,1714809253638,-1258.68,0.00041369,31]
[325394174,1714809253661,-564.34,0.00041369,31]
[325394175,1714809253685,-504.29891552,0.00041369,31]
[325394176,1714809253711,-2439.3,0.00041369,31]
[325394177,1714809253734,-500.0,0.00041369,31]
[325394178,1714809253758,-500.0,0.00041369,31]
[325394179,1714809253784,-500.0,0.00041369,31]
[325394180,1714809253808,-751.74,0.00041369,31]
[325394181,1714809253832,-436.62115636,0.00041369,31]
[325394182,1714809253857,-880.53,0.00041369,31]
[325394183,1714809253881,-871.38,0.00041369,31]
[325394184,1714809253905,-1021.9,0.00041369,31]
[325394185,1714809253930,-500.0,0.00041369,31]
[325394186,1714809253955,-961.61,0.00041369,31]
[325394187,1714809253980,-500.0,0.00041369,31]
[325394188,1714809254003,-2080.99,0.00041369,31]
[325394189,1714809254027,-710.89,0.00041369,31]
[325394190,1714809254057,-731.43,0.00041369,31]
[325394191,1714809254080,-500.0,0.00041369,31]
[325394192,1714809254104,-956.4,0.00041369,31]
[325394193,1714809254132,-1043.98,0.00041369,31]
[325394194,1714809254156,-500.0,0.00041369,31]
[325394195,1714809254181,-500.0,0.00041369,31]
[325394196,1714809254206,-500.0,0.00041369,31]
[325394197,1714809254230,-1407.73,0.00041369,31]
[325394198,1714809254255,-621.22160488,0.00041369,31]
[325394199,1714809254279,-500.0,0.00041369,31]
[325394200,1714809254303,-500.0,0.00041369,31]
[325394201,1714809254326,-165.81,0.00041369,31]
[325394202,1714809254350,-1362.04,0.00041369,31]
[325394203,1714809254375,-500.0,0.00041369,31]
[325394204,1714809254399,-871.13,0.00041369,31]
[325394205,1714809254423,-500.0,0.00041369,31]
[325394206,1714809254448,-567.77,0.00041369,31]
[325394207,1714809254473,-500.0,0.00041369,31]
[325394208,1714809254498,-704.4,0.00041369,31]
[325394209,1714809254523,-1177.15,0.00041369,31]
[325394210,1714809254548,-606.39,0.00041369,31]
[325394211,1714809254573,-853.2,0.00041369,31]
[325394212,1714809254598,-572.43,0.00041369,31]
[325394213,1714809254623,-500.0,0.00041369,31]
[325394214,1714809254647,-1497.37,0.00041369,31]
[325394215,1714809254672,-500.0,0.00041369,31]
[325394216,1714809254700,-885.59,0.00041369,31]
[325394217,1714809254727,-5858.38,0.00041369,31]
[325394218,1714809254753,-3897.64,0.00041369,31]
[325394219,1714809254782,-694.68,0.00041369,31]
[325394220,1714809254993,-649.68,0.00041369,31]
[325394221,1714809255020,-500.0,0.00041369,31]
[325394222,1714809255051,-852.85,0.00041369,31]
[325394223,1714809255078,-1754.55,0.00041369,31]
[325394224,1714809255103,-829.24,0.00041369,31]
[325394225,1714809255131,-1971.87,0.00041369,31]
[325394226,1714809255156,-1051.62,0.00041369,31]
[325394227,1714809255181,-38747.74,0.00041369,31]
[325394228,1714809255208,-2910.03,0.00041369,31]
[325394229,1714809255233,-5122.94,0.00041369,31]
[325394230,1714809255258,-500.0,0.00041369,31]
[325394231,1714809255284,-500.0,0.00041369,31]
[325394232,1714809255309,-589.93,0.00041369,31]
[325394233,1714809255334,-529.01,0.00041369,31]
[325394234,1714809255360,-1490.12,0.00041369,31]
[325394235,1714809255385,-500.0,0.00041369,31]
[325394236,1714809255410,-2341.76,0.00041369,31]
[325394237,1714809255436,-2664.06,0.00041369,31]
[325394238,1714809255463,-3096.29,0.00041369,31]
[325394239,1714809255490,-606.21,0.00041369,31]
[325394240,1714809255517,-508.55,0.00041369,31]
[325394241,1714809255543,-1774.75,0.00041369,31]